Workbook

Sheet SAB LOSS SHEET
A1: SAB LOSS CALCULATION SHEET FOR BSNL JTO / JE
A2: ENTER YOUR CADER WHILE JOINING IN BSNL (JTO/JAO/JE) | E2: JAO
A3: ENTER YOUR YEAR OF JOINING IN BSNL | E3: 2008
A5: YEAR WISE SAB LOSS
A6: YEAR | B6: BASIC PAY AMT | C6: DA IN PERCENTAGE % | D6: DA AMT | E6: ACTUAL SAB % RECEIVED | F6: MONTHLY SAB AMOUNT RECEIVED | G6: YEARLY SAB AMOUNT RECEIVED | H6: ACCUMULATED SAB AMOUNT FROM DATE OF JOINING | I6: BALANCE SAB % TO BE RECEIVED | J6: MONTHLY SAB AMOUNT LOSS | K6: YEARLY SAB AMOUNT LOSS | L6: CUMULATIVE SAB AMT LOSS | M6: PRESENT YEAR INTEREST LOSS | N6: ACCUMULATED LOSSES FROM DATE OF JOINING | O6: YEARLY SAB AMOUNT LOSS FROM 01-01-2007 | P6: CUMULATIVE SAB AMT LOSS FROM 01-01-2007 | Q6: PRESENT YEAR INTEREST LOSS FROM 01-01-2007 | R6: ACCUMULATED LOSSES FROM 01-01-2007
A7: 2002 | B7: 0 | C7: 41 | D7: =($B7*$C7)/100 -> 0 | E7: 16.8 | F7: =($B7+$D7)*$E7/100 -> 0 | G7: =$F7*12 -> 0 | H7: =G7 -> 0 | I7: =30-E7 -> 13.2 | J7: =($B7+$D7)*$I7/100 -> 0 | K7: =$J7*12 -> 0 | L7: =$K7 -> 0 | M7: =0 -> 0 | N7: =$K7 -> 0
A8: 2003 | B8: 0 | C8: 43 | D8: =($B8*$C8)/100 -> 0 | E8: 16.8 | F8: =($B8+$D8)*$E8/100 -> 0 | G8: =$F8*12 -> 0 | H8: =$G8+$H7+($H7*8.5/100) -> 0 | I8: =30-E8 -> 13.2 | J8: =($B8+$D8)*$I8/100 -> 0 | K8: =$J8*12 -> 0 | L8: =$K8+$N7 -> 0 | M8: =$N7*8.5/100 -> 0 | N8: =($K8+$N7)+$N7*8.5/100 -> 0
A9: 2004 | B9: 0 | C9: 45 | D9: 0 | E9: 16.8 | F9: =($B9+$D9)*$E9/100 -> 0 | G9: 0 | H9: =$G9+$H8+($H8*8.5/100) -> 0 | I9: 13.2 | J9: 0 | K9: 0 | L9: 0 | M9: 0 | N9: 0
A10: 2005 | B10: 0 | C10: 52 | D10: 0 | E10: 16.8 | F10: 0 | G10: 0 | H10: 0 | I10: 13.2 | J10: 0 | K10: 0 | L10: 0 | M10: 0 | N10: 0
A11: 2006 | B11: 0 | C11: 60 | D11: 0 | E11: 16.8 | F11: 0 | G11: 0 | H11: 0 | I11: 13.2 | J11: 0 | K11: 0 | L11: 0 | M11: 0 | N11: 0
A12: 2007 | B12: 0 | C12: 0 | D12: 0 | E12: 16.8 | F12: 0 | G12: 0 | H12: 0 | I12: 13.2 | J12: 0 | K12: 0 | L12: 0 | M12: 0 | N12: 0 | O12: =K12 -> 0 | P12: =$O12 -> 0 | Q12: =0 -> 0 | R12: =O12 -> 0
A13: 2008 | B13: 22820 | C13: 5.8 | D13: 1323.56 | E13: 16.8 | F13: 4056.11808 | G13: 48673.41696 | H13: 48673.41696 | I13: 13.2 | J13: 3186.94992 | K13: 38243.39904 | L13: 38243.39904 | M13: 0 | N13: 38243.39904 | O13: =K13 -> 38243.39904 | P13: =$O13+$R12 -> 38243.39904 | Q13: =R12*8.5/100 -> 0 | R13: =(O13+R12)+R12*8.5/100 -> 38243.39904
A14: 2009 | B14: 23510 | C14: 18.5 | D14: 4349.35 | E14: 16.8 | F14: 4680.3708 | G14: 56164.4496 | H14: 108975.107 | I14: 13.2 | J14: 3677.4342 | K14: 44129.2104 | L14: 82372.60944 | M14: 3250.688918 | N14: 85623.29836 | O14: =K14 -> 44129.2104 | P14: =$O14+$R13 -> 82372.60944 | Q14: =R13*8.5/100 -> 3250.688918 | R14: 85623.29836
A15: 2010 | B15: 24220 | C15: 35 | D15: 8477 | E15: 16.8 | F15: 5493.096 | G15: 65917.152 | H15: 184155.1431 | I15: 13.2 | J15: 4316.004 | K15: 51792.048 | L15: 137415.3464 | M15: 7277.98036 | N15: 144693.3267 | O15: 51792.048 | P15: 137415.3464 | Q15: 7277.98036 | R15: 144693.3267
A16: 2011 | B16: 24950 | C16: 45 | D16: 11227.5 | E16: 16.8 | F16: 6077.82 | G16: 72933.84 | H16: 272742.1703 | I16: 13.2 | J16: 4775.43 | K16: 57305.16 | L16: 201998.4867 | M16: 12298.93277 | N16: 214297.4195 | O16: 57305.16 | P16: 201998.4867 | Q16: 12298.93277 | R16: 214297.4195
A17: 2012 | B17: 26470 | C17: 56.7 | D17: 15008.49 | E17: 16.8 | F17: 6968.38632 | G17: 83620.63584 | H17: 379545.8906 | I17: 13.2 | J17: 5475.16068 | K17: 65701.92816 | L17: 279999.3476 | M17: 18215.28066 | N17: 298214.6283 | O17: 65701.92816 | P17: 279999.3476 | Q17: 18215.28066 | R17: 298214.6283
A18: 2013 | B18: 27270 | C18: 78.9 | D18: 21516.03 | E18: 16.8 | F18: 8196.05304 | G18: 98352.63648 | H18: 510159.9278 | I18: 13.2 | J18: 6439.75596 | K18: 77277.07152 | L18: 375491.6998 | M18: 25348.24341 | N18: 400839.9432 | O18: 77277.07152 | P18: 375491.6998 | Q18: 25348.24341 | R18: 400839.9432
A19: 2014 | B19: 28090 | C19: 91.3 | D19: 25646.17 | E19: 16.8 | F19: =($B19+$D19)*$E19/100 -> 9027.67656 | G19: 108332.1187 | H19: 661855.6403 | I19: 13.2 | J19: 7093.17444 | K19: 85118.09328 | L19: 485958.0365 | M19: 34071.39517 | N19: 520029.4317 | O19: 85118.09328 | P19: 485958.0365 | Q19: 34071.39517 | R19: 520029.4317
A20: 2015 | B20: 28940 | C20: 102.6 | D20: 29692.44 | E20: 16.8 | F20: =($B20+$D20)*$E20/100 -> 9850.24992 | G20: 118202.999 | H20: 836316.3688 | I20: 13.2 | J20: 7739.48208 | K20: 92873.78496 | L20: 612903.2166 | M20: 44202.50169 | N20: 657105.7183 | O20: 92873.78496 | P20: 612903.2166 | Q20: 44202.50169 | R20: 657105.7183
A21: 2016 | B21: 29810 | C21: 115 | D21: 34281.5 | E21: 19.8 | F21: =($B21+$D21)*$E21/100 -> 12690.117 | G21: 152281.404 | H21: 1059684.664 | I21: 11.2 | J21: 7178.248 | K21: 86138.976 | L21: 743244.6943 | M21: 55853.98606 | N21: 799098.6804 | O21: 86138.976 | P21: 743244.6943 | Q21: 55853.98606 | R21: 799098.6804
A22: 2017 | B22: 31630 | C22: 112.4 | D22: 35552.12 | E22: 21.8 | F22: =($B22+$D22)*$E22/100 -> 14645.70216 | G22: 175748.4259 | H22: =$G22+$H21+($H21*8.5/100) -> 1325506.287 | I22: 8.2 | J22: 5508.93384 | K22: 66107.20608 | L22: 865205.8865 | M22: 67923.38783 | N22: 933129.2743 | O22: 66107.20608 | P22: 865205.8865 | Q22: 67923.38783 | R22: 933129.2743
A23: 2018 | B23: 32580 | C23: 122.5 | D23: 39910.5 | E23: 21.8 | F23: =($B23+$D23)*$E23/100 -> 15802.929 | G23: 189635.148 | H23: 1627809.469 | I23: 8.2 | J23: 5944.221 | K23: 71330.652 | L23: 1004459.926 | M23: 79315.98832 | N23: 1083775.915 | O23: 71330.652 | P23: 1004459.926 | Q23: 79315.98832 | R23: 1083775.915
A24: 2019 | B24: 33560 | C24: 147.82 | D24: 49608.392 | E24: 21.8 | F24: =($B24+$D24)*$E24/100 -> 18130.70946 | G24: 217568.5135 | H24: 1983741.787 | I24: 8.2 | J24: 6819.808144 | K24: 81837.69773 | L24: 1165613.612 | M24: 92120.95274 | N24: 1257734.565 | O24: 81837.69773 | P24: 1165613.612 | Q24: 92120.95274 | R24: 1257734.565
A25: 2020 | B25: 34570 | C25: 160.7 | D25: 55553.99 | E25: 21.8 | F25: 19647.02982 | G25: 235764.3578 | H25: 2388124.197 | I25: 8.2 | J25: 7390.16718 | K25: 88682.00616 | L25: 1346416.571 | M25: 106907.438 | N25: 1453324.009 | O25: 88682.00616 | P25: 1346416.571 | Q25: 106907.438 | R25: 1453324.009
A28: ELIGIBLE TOTAL SAB AMOUNT WITH 30% SAB FROM DATE OF JOINING ** | L28: =H25+N25 -> 3841448.206 | M28: LOSSES | N28: =L28-L30 -> 1453324.009
A29: ELIGIBLE TOTAL SAB AMOUNT WITH 30% SAB FROM DATE OF JOINING (W.E.F 2ND PRC i.e 01-01-2007) ** | L29: =H25+R25 -> 3841448.206 | M29: LOSSES | N29: =L29-L30 -> 1453324.009
A30: ACTUAL ACCUMULATED SAB AMOUNT FROM DATE OF JOINING WITH REDUCED SAB ** | L30: =H25 -> 2388124.197
A32: NOTE ** | B32: ABOVE CALCULATIONS ARE INDICATIVE ONLY AS APPROXIMATIONS DONE LIKE PAY INCREASE HAPPENS FROM JAN OF EACH YEAR, INCREMENT INCREASE DUE TO REGULAR PROMOTION NOT INCLUDED AND SAB INCREASE TAKEN FOR ENTIRE YEAR INSTEAD OF FROM ACTUAL DATE OF IMPLEMENTATION

Sheet BASIC PAY SHEET
A1: YEAR | B1: BP FOR JTO/JAO JTO/JAO YOJ 2002 | C1: BP FOR JTO/JAO JTO/JAO YOJ 2003 | D1: BP FOR JTO/JAO YOJ 2004 | E1: BP FOR JTO/JAO YOJ 2005 | F1: BP FOR JTO/JAO YOJ 2006 | G1: BP FOR JTO/JAO YOJ 2007 | H1: BP FOR JTO/JAO YOJ 2008 | I1: BP FOR JTO/JAO YOJ 2009 | J1: BP FOR JTO/JAO YOJ 2010 | K1: BP FOR JTO/JAO YOJ 2011 | L1: BP FOR JTO/JAO YOJ 2012 | M1: BP FOR JTO/JAO YOJ 2013 | N1: BP FOR JTO/JAO YOJ 2014 | O1: BP FOR JTO/JAO YOJ 2015 | P1: BP FOR JTO/JAO YOJ 2016 | Q1: BP FOR JTO/JAO YOJ 2017 | R1: BP FOR JTO/JAO YOJ 2018 | S1: BP FOR JTO/JAO YOJ 2019 | T1: BP FOR JTO/JAO YOJ 2020 | W1: YEAR | X1: DA IN PERCENTAGE %
A2: 2002 | B2: 9850 | C2: 0 | D2: 0 | E2: 0 | F2: 0 | G2: 0 | H2: 0 | I2: 0 | J2: 0 | K2: 0 | L2: 0 | M2: 0 | N2: 0 | O2: 0 | P2: 0 | Q2: 0 | R2: 0 | S2: 0 | T2: 0 | W2: 2002 | X2: 41
A3: 2003 | B3: 10100 | C3: 9850 | D3: 0 | E3: 0 | F3: 0 | G3: 0 | H3: 0 | I3: 0 | J3: 0 | K3: 0 | L3: 0 | M3: 0 | N3: 0 | O3: 0 | P3: 0 | Q3: 0 | R3: 0 | S3: 0 | T3: 0 | W3: 2003 | X3: 43
A4: 2004 | B4: 10350 | C4: 10100 | D4: 9850 | E4: 0 | F4: 0 | G4: 0 | H4: 0 | I4: 0 | J4: 0 | K4: 0 | L4: 0 | M4: 0 | N4: 0 | O4: 0 | P4: 0 | Q4: 0 | R4: 0 | S4: 0 | T4: 0 | W4: 2004 | X4: 45
A5: 2005 | B5: 10600 | C5: 10350 | D5: 10100 | E5: 9850 | F5: 0 | G5: 0 | H5: 0 | I5: 0 | J5: 0 | K5: 0 | L5: 0 | M5: 0 | N5: 0 | O5: 0 | P5: 0 | Q5: 0 | R5: 0 | S5: 0 | T5: 0 | W5: 2005 | X5: 52
A6: 2006 | B6: 10850 | C6: 10600 | D6: 10350 | E6: 10100 | F6: 9850 | G6: 0 | H6: 0 | I6: 0 | J6: 0 | K6: 0 | L6: 0 | M6: 0 | N6: 0 | O6: 0 | P6: 0 | Q6: 0 | R6: 0 | S6: 0 | T6: 0 | W6: 2006 | X6: 60
A7: 2007 | B7: 25270 | C7: 24589 | D7: 23310 | E7: 22750 | F7: 22190 | G7: 22820 | H7: 0 | I7: 0 | J7: 0 | K7: 0 | L7: 0 | M7: 0 | N7: 0 | O7: 0 | P7: 0 | Q7: 0 | R7: 0 | S7: 0 | T7: 0 | W7: 2007 | X7: 0
A8: 2008 | B8: 26040 | C8: 25330 | D8: 24730 | E8: 23440 | F8: 23550 | G8: 23510 | H8: 22820 | I8: 0 | J8: 0 | K8: 0 | L8: 0 | M8: 0 | N8: 0 | O8: 0 | P8: 0 | Q8: 0 | R8: 0 | S8: 0 | T8: 0 | W8: 2008 | X8: 5.8
A9: 2009 | B9: 26820 | C9: 26090 | D9: 25480 | E9: 24870 | F9: 24260 | G9: 24220 | H9: 23510 | I9: 19020 | J9: 0 | K9: 0 | L9: 0 | M9: 0 | N9: 0 | O9: 0 | P9: 0 | Q9: 0 | R9: 0 | S9: 0 | T9: 0 | W9: 2009 | X9: 18.5
A10: 2010 | B10: 27620 | C10: 26880 | D10: 26250 | E10: 25620 | F10: 25740 | G10: 24950 | H10: 24220 | I10: 19600 | J10: 16400 | K10: 0 | L10: 0 | M10: 0 | N10: 0 | O10: 0 | P10: 0 | Q10: 0 | R10: 0 | S10: 0 | T10: 0 | W10: 2010 | X10: 35
A11: 2011 | B11: 28450 | C11: 27690 | D11: 27040 | E11: 26390 | F11: 26520 | G11: 26470 | H11: 24950 | I11: 20190 | J11: 16900 | K11: 16400 | L11: 0 | M11: 0 | N11: 0 | O11: 0 | P11: 0 | Q11: 0 | R11: 0 | S11: 0 | T11: 0 | W11: 2011 | X11: 45
A12: 2012 | B12: 32765 | C12: 29380 | D12: 27860 | E12: 27190 | F12: 27320 | G12: 27270 | H12: 26470 | I12: 20800 | J12: 17410 | K12: 16900 | L12: 16400 | M12: 0 | N12: 0 | O12: 0 | P12: 0 | Q12: 0 | R12: 0 | S12: 0 | T12: 0 | W12: 2012 | X12: 56.7
A13: 2013 | B13: 33750 | C13: 30270 | D13: 29560 | E13: 28010 | F13: 28140 | G13: 28090 | H13: 27270 | I13: 22070 | J13: 17940 | K13: 17410 | L13: 16900 | M13: 16400 | N13: 0 | O13: 0 | P13: 0 | Q13: 0 | R13: 0 | S13: 0 | T13: 0 | W13: 2013 | X13: 78.9
A14: 2014 | B14: 34760 | C14: 31180 | D14: 30450 | E14: 29720 | F14: 28990 | G14: 28940 | H14: 28090 | I14: 22740 | J14: 19040 | K14: 17940 | L14: 17410 | M14: 16900 | N14: 16400 | O14: 0 | P14: 0 | Q14: 0 | R14: 0 | S14: 0 | T14: 0 | W14: 2014 | X14: 91.3
A15: 2015 | B15: 35810 | C15: 32120 | D15: 31370 | E15: 30620 | F15: 30760 | G15: 29810 | H15: 28940 | I15: 23430 | J15: 19620 | K15: 19040 | L15: 17940 | M15: 17410 | N15: 16900 | O15: 16400 | P15: 0 | Q15: 0 | R15: 0 | S15: 0 | T15: 0 | W15: 2015 | X15: 102.6
A16: 2016 | B16: 36890 | C16: 33090 | D16: 32320 | E16: 31540 | F16: 31690 | G16: 31630 | H16: 29810 | I16: 24140 | J16: 20210 | K16: 19620 | L16: 19040 | M16: 17940 | N16: 17410 | O16: 16900 | P16: 16400 | Q16: 0 | R16: 0 | S16: 0 | T16: 0 | W16: 2016 | X16: 115
A17: 2017 | B17: 39240 | C17: 35110 | D17: 33290 | E17: 32490 | F17: 32650 | G17: 32580 | H17: 31630 | I17: 24870 | J17: 20820 | K17: 20210 | L17: 19620 | M17: 19040 | N17: 17940 | O17: 17410 | P17: 16900 | Q17: 16400 | R17: 0 | S17: 0 | T17: 0 | W17: 2017 | X17: 112.4
A18: 2018 | B18: 40420 | C18: 36170 | D18: 35320 | E18: 33470 | F18: 33630 | G18: 33560 | H18: 32580 | I18: 26390 | J18: 21450 | K18: 20820 | L18: 20210 | M18: 19620 | N18: 19040 | O18: 17940 | P18: 17410 | Q18: 16900 | R18: 16400 | S18: 0 | T18: 0 | W18: 2018 | X18: 122.5
A19: 2019 | B19: 41640 | C19: 37260 | D19: 36380 | E19: 35510 | F19: 34640 | G19: 34570 | H19: 33560 | I19: 27190 | J19: 22760 | K19: 21450 | L19: 20820 | M19: 20210 | N19: 19620 | O19: 19040 | P19: 17940 | Q19: 17410 | R19: 16900 | S19: 16400 | T19: 0 | W19: 2019 | X19: 147.82
A20: 2020 | B20: 42890 | C20: 38380 | D20: 37480 | E20: 36580 | F20: 36750 | G20: 35610 | H20: 34570 | I20: 28010 | J20: 23450 | K20: 22760 | L20: 21450 | M20: 20820 | N20: 20210 | O20: 19620 | P20: 19040 | Q20: 17940 | R20: 17410 | S20: 16900 | T20: 16400 | W20: 2020 | X20: 160.7
A22: YEAR | B22: BP FOR JE JE YOJ 2002 | C22: BP FOR JE YOJ 2003 | D22: BP FOR JE YOJ 2004 | E22: BP FOR JE YOJ 2005 | F22: BP FOR JE YOJ 2006 | G22: BP FOR JE YOJ 2007 | H22: BP FOR JE YOJ 2008 | I22: BP FOR JE YOJ 2009 | J22: BP FOR JE YOJ 2010 | K22: BP FOR JE YOJ 2011 | L22: BP FOR JE YOJ 2012 | M22: BP FOR JE YOJ 2013 | N22: BP FOR JE YOJ 2014 | O22: BP FOR JE YOJ 2015 | P22: BP FOR JE YOJ 2016 | Q22: BP FOR JE YOJ 2017 | R22: BP FOR JE YOJ 2018 | S22: BP FOR JE YOJ 2019 | T22: BP FOR JE YOJ 2020
A23: 2002 | B23: 7100
A24: 2003 | B24: 7300 | C24: 7100
A25: 2004 | B25: 7500 | C25: 7300 | D25: 7100
A26: 2005 | B26: 7700 | C26: 7500 | D26: 7300 | E26: 7100
A27: 2006 | B27: 7900 | C27: 7700 | D27: 7500 | E27: 7300 | F27: 7100
A28: 2007 | B28: 18860 | C28: 17840 | D28: 17380 | E28: 16920 | F28: 16430 | G28: 14010
A29: 2008 | B29: 19430 | C29: 18380 | D29: 17910 | E29: 17430 | F29: 16930 | G29: 14440 | H29: 14010
A30: 2009 | B30: 20630 | C30: 18940 | D30: 18450 | E30: 17960 | F30: 17440 | G30: 14890 | H30: 14440 | I30: 14010
A31: 2010 | B31: 21250 | C31: 19510 | D31: 19010 | E31: 18500 | F31: 17970 | G31: 15340 | H31: 14890 | I31: 14440 | J31: 14010
A32: 2011 | B32: 21890 | C32: 20710 | D32: 19590 | E32: 19060 | F32: 18510 | G32: 15810 | H32: 15340 | I32: 14890 | J32: 14440 | K32: 13600
A33: 2012 | B33: 22550 | C33: 21340 | D33: 20790 | E33: 19640 | F33: 19070 | G33: 16290 | H33: 15810 | I33: 15340 | J33: 14890 | K33: 14010 | L33: 13600
A34: 2013 | B34: 23230 | C34: 21990 | D34: 21420 | E34: 20840 | F34: 19650 | G34: 16780 | H34: 16290 | I34: 15810 | J34: 15340 | K34: 14440 | L34: 14010 | M34: 13600
A35: 2014 | B35: 24650 | C35: 23330 | D35: 22070 | E35: 21470 | F35: 20850 | G35: 17290 | H35: 16780 | I35: 16290 | J35: 15810 | K35: 14890 | L35: 14440 | M35: 14010 | N35: 13600
A36: 2015 | B36: 25390 | C36: 24030 | D36: 22740 | E36: 22120 | F36: 21480 | G36: 18350 | H36: 17290 | I36: 16780 | J36: 16290 | K36: 15340 | L36: 14890 | M36: 14440 | N36: 14010 | O36: 13600
A37: 2016 | B37: 26160 | C37: 24760 | D37: 24140 | E37: 22790 | F37: 22130 | G37: 18910 | H37: 18350 | I37: 17290 | J37: 16780 | K37: 15810 | L37: 15340 | M37: 14890 | N37: 14440 | O37: 14010 | P37: 13600
A38: 2017 | B38: 26950 | C38: 25510 | D38: 24870 | E38: 24190 | F38: 22800 | G38: 19480 | H38: 19480 | I38: 18350 | J38: 17290 | K38: 16290 | L38: 15810 | M38: 15340 | N38: 15340 | O38: 14440 | P38: 14010 | Q38: 13600
A39: 2018 | B39: 27760 | C39: 26280 | D39: 25620 | E39: 24920 | F39: 23490 | G39: 20070 | H39: 20070 | I39: 19480 | J39: 18350 | K39: 17290 | L39: 16290 | M39: 15810 | N39: 15810 | O39: 14890 | P39: 14440 | Q39: 14010 | R39: 13600
A40: 2019 | B40: 28600 | C40: 27070 | D40: 26390 | E40: 25670 | F40: 24200 | G40: 20680 | H40: 20680 | I40: 20070 | J40: 18910 | K40: 18350 | L40: 17290 | M40: 16290 | N40: 16290 | O40: 15340 | P40: 14890 | Q40: 14440 | R40: 14410 | S40: 13600
A41: 2020 | B41: 29460 | C41: 27890 | D41: 27190 | E41: 26450 | F41: 24930 | G41: 21310 | H41: 21310 | I41: 20680 | J41: 19480 | K41: 18910 | L41: 18350 | M41: 17290 | N41: 17290 | O41: 15810 | P41: 15340 | Q41: 14890 | R41: 14440 | S41: 14410 | T41: 13600
